bitfinex/quotes_ETHUSD_20251008
["timestamp","ask_amount","ask_price","bid_price","bid_amount"]
[1759934813519,10.03451345,4464.2,4463.1,0.01]
[1759934813882,10.03451345,4464.2,4463.1,2.2505944]
[1759934814088,10.03451345,4464.2,4463.1,0.01]
[1759934814300,7.344643,4464.2,4463.3,2.24048287]
[1759934814612,7.344643,4464.2,4463.3,2.24046626]
[1759934814909,7.344643,4464.2,4463.2,2.24053619]
[1759934815084,7.776243,4464.2,4463.2,2.24053619]
[1759934815283,7.776243,4464.2,4463.3,2.24048375]
[1759934815728,7.776243,4464.2,4463.1,2.25059467]
[1759934815729,1.92,4464.2,4463.8,2.24023021]
[1759934815887,4.472,4464.2,4463.8,2.24023021]
[1759934816090,4.472,4464.2,4463.9,2.24018813]
[1759934816288,4.584,4464.2,4464.0,2.24013302]
[1759934816518,4.584,4464.2,4463.8,2.24019492]
[1759934816998,4.584,4464.2,4463.9,2.24019329]
[1759934817198,4.584,4464.2,4463.8,2.24023688]
[1759934818520,4.584,4464.2,4463.6,0.4287]
[1759934819022,4.584,4464.2,4463.8,2.24020313]
[1759934819400,4.584,4464.2,4463.9,2.24018671]
[1759934819728,0.112,4464.2,4464.1,2.78679318]
[1759934819900,2.552,4464.2,4464.1,1.05163589]
[1759934820096,0.1112,4464.6,4464.1,2.78679318]
[1759934820299,2.82539882,4466.0,4464.2,0.45110043]
[1759934820494,0.46951993,4465.9,4464.2,0.4287]
[1759934820717,0.46951993,4466.1,4464.3,0.02239992]
[1759934820997,0.002,4467.4,4466.3,2.23898976]
[1759934820998,1.479,4466.4,4466.3,2.23898976]
[1759934821303,2.552,4466.4,4466.0,0.2049]
[1759934821498,0.46951993,4467.3,4466.3,0.4287]
[1759934821697,0.002,4467.4,4466.4,0.02238939]
[1759934821910,0.002,4467.4,4466.5,0.4287]
[1759934822101,1.428,4467.2,4466.8,2.23873914]
[1759934822627,0.0112,4466.9,4466.8,2.66743914]
[1759934822830,0.0112,4466.9,4466.8,3.18045438]
[1759934823029,0.0112,4466.9,4466.8,3.15806699]
[1759934823606,0.0112,4466.9,4466.8,3.18045438]
[1759934823808,0.002,4467.4,4466.9,2.23868902]
[1759934824035,0.002,4467.4,4467.1,2.23856436]
[1759934824226,0.002,4467.4,4467.2,0.51298072]
[1759934824534,0.002,4467.4,4467.3,2.23848857]
[1759934824921,0.002,4467.4,4467.3,2.66718857]
[1759934826635,0.002,4467.4,4467.3,5.21818857]
[1759934827663,0.002,4467.4,4467.3,2.66718857]
[1759934827864,0.002,4467.4,4467.3,3.20682338]
[1759934828230,0.002,4467.4,4467.3,2.66718857]
[1759934828436,0.002,4467.4,4466.8,2.72932622]
[1759934828636,0.002,4467.4,4466.9,0.02238689]
[1759934828871,0.002,4467.4,4467.2,0.4287]
[1759934829042,0.002,4467.4,4466.1,0.4287]
[1759934829356,0.002,4467.4,4466.5,0.4287]
[1759934829736,0.002,4467.4,4466.8,2.23873158]
[1759934829964,0.002,4467.4,4466.5,0.4287]
[1759934830373,0.002,4467.4,4466.9,2.34987656]
[1759934830558,0.002,4467.4,4466.9,0.1112]
[1759934830749,0.002,4467.4,4466.9,2.3498699]
[1759934830945,0.002,4467.4,4466.9,0.1112]
[1759934831162,0.4316,4467.3,4466.0,0.2049]
[1759934831338,4.81033693,4467.2,4466.6,0.1112]
[1759934831668,3.31035416,4467.2,4466.6,0.1112]
[1759934831849,5.56972141,4467.2,4466.6,0.1112]
[1759934832044,2.23859993,4467.1,4466.6,0.1112]
[1759934832447,0.02078755,4467.1,4466.6,0.1112]
[1759934832654,2.25941485,4467.1,4466.6,0.1112]
[1759934832970,2.2386273,4467.1,4466.6,0.1112]
[1759934833186,3.00238755,4467.0,4465.7,0.4287]
[1759934833473,3.00238755,4467.0,4466.2,2.23900881]
[1759934833474,0.1112,4466.6,4466.2,2.23900881]
[1759934833767,0.1112,4466.6,4465.9,0.1112]
[1759934834340,0.1112,4466.6,4466.2,2.23901307]
[1759934834742,0.1112,4466.6,4466.2,2.66771307]
[1759934834944,0.1112,4466.6,4466.0,2.23909872]
[1759934835346,0.1112,4466.6,4465.9,2.3503876]
[1759934835558,0.1112,4466.6,4465.9,0.1112]
[1759934835882,0.1112,4466.6,4465.9,2.35038496]
[1759934836088,0.1112,4466.6,4465.9,0.1112]
[1759934836289,0.1112,4466.6,4466.0,0.4510914]
[1759934836506,2.55,4466.5,4466.3,2.23894842]
[1759934836779,2.55,4466.6,4466.2,2.35023072]
[1759934836944,2.55,4466.6,4466.2,0.1112]
[1759934837141,2.55,4466.6,4466.2,2.77891909]
[1759934837343,2.55,4466.6,4466.4,2.23889947]
[1759934837946,2.55,4466.8,4466.5,2.6675536]
[1759934838282,2.55,4466.8,4466.2,0.1112]
[1759934838458,2.55,4466.8,4466.3,2.2389523]
[1759934838774,2.55,4466.8,4466.4,2.2389333]
[1759934839373,2.55,4466.8,4466.5,2.23888839]
[1759934839558,2.55,4466.8,4466.6,2.23879828]
[1759934839752,2.55,4466.8,4466.6,2.66749828]
[1759934839957,0.1112,4466.9,4466.2,0.1112]
[1759934840157,2.55,4466.9,4466.7,2.66747037]
[1759934840356,2.55,4466.9,4466.8,2.23873914]
[1759934840570,1.922,4467.4,4466.8,2.23873914]
[1759934840571,0.002,4467.4,4466.9,2.23864761]
[1759934840770,1.92,4467.2,4466.9,2.23864761]
[1759934840987,1.92,4467.2,4467.0,0.4287]
[1759934841188,2.55,4467.3,4467.2,2.23853868]
[1759934841358,2.55,4467.3,4466.9,0.1112]
[1759934841565,2.55,4467.3,4466.4,2.23889349]
[1759934841566,0.02078755,4467.2,4466.4,2.23889349]
[1759934841769,0.1112,4467.2,4466.6,2.2387913]
[1759934842087,0.1112,4467.2,4466.4,2.35012999]
[1759934842395,2.55,4467.3,4466.7,0.1112]
[1759934842565,2.55,4467.3,4466.8,2.23869702]
[1759934843078,2.55,4467.3,4466.9,2.66736011]
[1759934843285,0.002,4467.4,4467.3,2.23848857]
[1759934843583,0.002,4467.4,4467.0,0.1112]
[1759934843987,2.70736269,4467.4,4467.0,0.1112]
[1759934844191,2.72815024,4467.4,4466.6,2.23883475]
[1759934844389,2.72815024,4467.4,4465.3,2.2394748]
[1759934844390,2.23878352,4466.8,4465.4,0.4635]
[1759934844696,2.23878352,4466.8,4466.1,0.1112]
[1759934844697,2.23885014,4466.6,4466.1,0.1112]
[1759934844993,2.23891194,4466.5,4466.1,0.1112]
[1759934845160,0.02078755,4466.4,4465.4,0.4635]
[1759934845363,2.35023318,4466.3,4465.5,0.1112]
[1759934845566,2.34943318,4466.3,4465.6,2.24033681]
[1759934845979,0.1112,4466.3,4465.6,0.001]
[1759934846177,0.1112,4466.3,4465.7,2.23929059]
[1759934846470,0.13198755,4466.3,4465.6,2.24032743]
[1759934847087,2.37098107,4466.3,4465.6,2.24033066]
[1759934847395,0.13198755,4466.3,4465.6,0.001]
[1759934847597,0.1112,4466.3,4465.7,2.23925383]
[1759934847968,0.1112,4466.3,4465.8,2.23923756]
[1759934848268,2.2386728,4467.0,4465.9,0.4858919]
[1759934848484,2.2386728,4467.0,4465.9,0.4635]
[1759934848485,0.1112,4466.5,4465.9,0.4635]
[1759934848781,2.55,4466.4,4466.1,2.23905371]
[1759934848979,2.55,4466.4,4466.2,0.4635]
[1759934849198,2.55,4466.4,4465.9,2.2391412]
[1759934849199,2.55,4466.4,4465.8,0.1112]
[1759934850284,2.55,4466.4,4465.8,2.35042582]
[1759934850487,2.55,4466.4,4466.0,2.23910562]
[1759934850784,2.55,4466.4,4465.8,2.35042582]
[1759934850998,2.55,4466.4,4465.8,2.6319184]
[1759934851196,0.1112,4466.5,4466.1,2.23907455]
[1759934851418,2.55,4466.3,4465.8,0.39269258]
[1759934851619,2.55,4466.3,4466.2,2.23903989]
[1759934851822,0.1112,4466.5,4466.4,2.23893963]
[1759934852109,2.55,4466.7,4466.4,0.60534782]
[1759934852334,2.55,4466.7,4466.5,0.4635]
[1759934852489,2.55,4466.7,4466.5,2.70235018]
[1759934852684,2.55,4466.7,4466.6,2.23883938]
[1759934853012,2.55,4466.7,4466.6,0.5747]
[1759934853308,0.1132,4467.4,4466.8,2.23869075]
[1759934853477,1.92,4467.2,4466.8,2.23869075]
[1759934853910,1.92,4467.2,4466.9,0.4635]
[1759934855277,1.92,4467.2,4466.7,2.23878064]
[1759934855480,1.92,4467.2,4466.8,2.23872193]
[1759934856327,2.55,4467.1,4466.7,2.70227652]
[1759934856533,2.40768755,4467.0,4465.1,0.011]
[1759934856816,1.92,4466.8,4465.4,0.4635]
[1759934856985,0.02078755,4466.7,4465.4,0.4635]
[1759934857310,2.23903794,4466.3,4465.4,0.4635]
[1759934857511,2.23903794,4466.3,4465.6,2.24032773]
[1759934857707,2.25983692,4466.2,4465.6,0.001]
[1759934857901,2.55,4466.1,4465.6,2.24030247]
[1759934858486,2.55,4466.1,4465.6,0.001]
[1759934858687,1.94078755,4466.0,4465.6,0.001]
[1759934858926,4.39629059,4465.7,4465.6,0.001]
[1759934859136,3.02187424,4465.7,4465.6,0.4645]
[1759934859288,2.55,4465.7,4465.6,0.001]
[1759934860191,7.1808851,4465.7,4465.6,0.001]
[1759934860915,4.94159451,4465.7,4465.6,0.001]
[1759934863089,2.39159451,4465.7,4465.6,0.001]
[1759934863285,0.47159451,4466.2,4465.6,0.4557]
[1759934863518,0.02078755,4467.6,4466.1,0.2049]
[1759934863705,2.55,4467.1,4467.0,2.2385937]
[1759934864113,2.55,4467.1,4467.0,2.6932937]
[1759934865110,0.002,4467.4,4467.1,2.23858879]
[1759934865296,0.002,4467.4,4467.1,2.69328879]
[1759934865795,0.002,4467.7,4467.6,2.23833825]
[1759934866216,0.002,4467.7,4467.6,2.71542163]
[1759934866405,1.25378755,4467.7,4463.5,2.24035533]
[1759934866619,0.1112,4467.2,4466.5,0.1112]
[1759934866817,0.1112,4467.2,4466.6,0.4547]
[1759934867015,0.1112,4467.2,4466.8,2.23873914]
[1759934867217,0.1112,4467.2,4466.9,0.47708689]
[1759934867430,0.1112,4467.2,4466.1,2.7549]
[1759934867431,0.002,4467.7,4467.5,2.2383788]
[1759934867858,0.002,4467.7,4467.4,0.1112]
[1759934868206,0.002,4467.7,4467.5,2.23837959]
[1759934868523,0.002,4467.7,4467.4,0.1112]
[1759934868703,0.0012,4467.7,4467.4,0.1112]
[1759934869335,0.0012,4467.7,4467.4,2.34963756]
[1759934869910,0.0012,4467.7,4467.5,2.23838557]
[1759934870112,0.0012,4467.7,4467.6,0.02238338]
[1759934870429,0.0012,4467.7,4467.6,2.71542163]
[1759934870600,0.0012,4467.7,4467.6,2.82662163]
[1759934870807,0.0012,4467.7,4467.6,2.80423825]
[1759934871265,0.0012,4467.7,4467.6,2.82662163]
[1759934871402,0.0012,4467.7,4467.6,6.91288737]
[1759934871607,0.0012,4467.7,4467.6,6.89050399]
[1759934872226,0.0012,4467.7,4467.6,4.72423825]
[1759934878438,0.0012,4467.7,4467.6,7.27323825]
[1759934880846,1e-08,4468.2,4467.7,1.92]
[1759934881052,1e-08,4468.2,4468.1,2.41728777]
[1759934881251,1e-08,4468.2,4468.1,6.90766864]
[1759934881453,1e-08,4468.6,4468.5,2.23788743]
[1759934881637,1e-08,4468.9,4468.8,2.2377372]
[1759934881955,1e-08,4468.9,4468.8,4.8969372]
[1759934882132,1e-08,4468.9,4468.8,5.3527372]
[1759934882334,1e-08,4468.9,4468.8,7.2727372]
[1759934882647,1e-08,4468.9,4468.8,9.36212068]
[1759934883965,1e-08,4468.9,4468.8,9.99572068]
[1759934884119,1e-08,4468.9,4468.8,10.1388469]
[1759934884320,1e-08,4468.9,4468.8,9.99572068]
[1759934885125,1e-08,4468.9,4468.8,7.44772068]
[1759934885328,1e-08,4468.9,4468.8,9.99572068]
[1759934886070,1e-08,4468.9,4468.8,7.44772068]
[1759934886255,1e-08,4468.9,4468.8,7.9063372]
[1759934888154,1e-08,4469.9,4469.8,2.23723656]
[1759934888363,1e-08,4469.9,4469.8,7.36120892]
[1759934888566,1e-08,4469.9,4469.8,7.79463656]
[1759934889925,0.01,4470.9,4469.8,7.79463656]
[1759934889926,0.01,4470.9,4470.8,2.23673615]
[1759934890163,0.01,4471.9,4470.8,2.99435424]
[1759934890392,0.01,4471.9,4471.8,2.23623596]
[1759934890728,0.01,4471.9,4470.8,0.44735424]
[1759934890929,0.01,4471.9,4470.8,0.4558]
[1759934891361,0.01,4471.9,4471.3,2.23644946]
[1759934891561,0.01,4471.9,4471.5,2.23637921]
[1759934891773,0.0092,4471.9,4470.9,2.23668612]
[1759934892141,0.0092,4471.9,4471.7,2.23624286]
[1759934892344,0.0092,4471.9,4471.6,2.23632247]
[1759934892668,0.20419876,4471.9,4471.7,2.23627596]
[1759934892967,0.0092,4471.9,4471.4,2.23643601]
[1759934893269,0.0092,4471.9,4471.8,2.23623596]
[1759934893658,0.0092,4471.9,4471.8,2.69203596]
[1759934895287,0.0092,4471.9,4471.8,2.71439831]
[1759934895446,0.0092,4471.9,4471.8,2.69203596]
[1759934895644,0.0092,4471.9,4471.8,3.4619355]
[1759934895959,0.0092,4471.9,4471.8,3.43957315]
[1759934896976,0.0092,4471.9,4471.8,0.4558]
[1759934897176,0.0092,4471.9,4471.8,2.69203596]
[1759934898171,0.0092,4471.9,4471.8,2.80323596]
[1759934899876,0.0092,4471.9,4471.8,5.34923596]
[1759934900076,0.0112,4471.9,4471.8,5.34923596]
[1759934900253,0.0112,4471.9,4471.8,6.10779106]
[1759934901047,1e-08,4471.9,4471.8,6.10779106]
[1759934901586,1e-08,4471.9,4471.8,8.02779106]
[1759934902001,1e-08,4471.9,4471.8,8.66139106]
[1759934903964,1e-08,4472.8,4472.7,2.23578599]
[1759934904157,1e-08,4472.8,4472.7,5.00536459]
[1759934904345,1e-08,4472.8,4472.7,7.38326459]
[1759934906146,0.58855754,4474.4,4473.6,2.23533619]
[1759934906345,0.002,4474.4,4473.6,4.80268955]
[1759934906545,0.002,4474.4,4473.6,7.15823619]
[1759934906748,0.002,4474.4,4473.6,8.09760038]
[1759934907161,0.002,4474.4,4473.6,8.54931616]
[1759934908984,0.002,4474.4,4473.6,6.00431616]
[1759934909153,0.002,4474.4,4473.6,8.54931616]
[1759934909680,1e-08,4473.9,4473.8,2.23523626]
[1759934909879,1e-08,4473.9,4473.8,3.3136915]
[1759934910063,1e-08,4473.9,4473.8,3.7715915]
[1759934910262,1e-08,4473.9,4473.8,6.3165915]
[1759934912049,1e-08,4474.2,4474.0,0.6336]
[1759934912253,1e-08,4474.2,4474.1,7.53958638]
[1759934912453,1e-08,4474.2,4474.1,7.99748638]
[1759934913796,1e-08,4474.2,4474.1,7.36388638]
[1759934913998,1e-08,4474.2,4474.1,7.47508638]
[1759934914411,1e-08,4474.2,4473.6,0.4579]
[1759934914566,1e-08,4474.2,4473.7,0.2049]
[1759934914761,0.00120001,4474.4,4474.0,2.23510348]
[1759934914961,0.46934339,4474.3,4474.1,0.02235086]
[1759934915195,0.00120001,4474.4,4474.2,0.4579]
[1759934915700,0.00120001,4474.4,4474.3,2.69288647]
[1759934915872,0.47039457,4474.4,4474.3,2.69288647]
[1759934916075,0.47039457,4474.4,4474.3,0.48024986]
[1759934916393,0.00120001,4474.4,4474.3,2.69288647]
[1759934917198,0.00120001,4474.4,4474.3,5.23788647]
[1759934917698,0.00120001,4474.4,4474.3,2.69288647]
[1759934917895,0.00120001,4474.4,4474.3,5.23788647]
[1759934919298,0.00120001,4474.4,4474.3,2.69288647]
[1759934919513,0.00120001,4474.4,4474.3,5.23788647]
[1759934920528,0.00120001,4474.4,4474.3,5.23688647]
[1759934922905,0.00120001,4474.4,4474.3,2.69288647]
[1759934923104,0.00120001,4474.4,4474.3,5.25923633]
[1759934923305,0.00120001,4474.4,4474.3,5.23688647]
[1759934923506,0.002,4474.8,4474.7,2.23478668]
[1759934923731,0.002,4474.8,4474.7,4.78178668]
[1759934923923,0.002,4474.8,4474.7,2.69508668]
[1759934924408,0.002,4474.8,4474.7,5.35328668]
[1759934925830,0.002,4474.8,4474.7,2.34598668]
[1759934926136,0.002,4474.8,4474.7,2.80628668]
[1759934926531,0.002,4474.8,4474.7,2.34598668]
[1759934926839,0.002,4474.8,4474.7,0.1112]
[1759934927014,0.002,4474.8,4473.8,0.4603]
[1759934927015,0.47231409,4474.8,4474.4,0.1112]
[1759934927220,0.002,4474.8,4474.5,0.4603]
[1759934927544,0.002,4474.8,4474.4,0.1112]
[1759934927751,0.002,4474.8,4474.7,2.23478668]
[1759934927905,0.47254007,4474.8,4474.7,2.25713454]
[1759934928122,0.002,4474.8,4474.7,2.71743454]
[1759934929357,0.002,4474.8,4474.7,3.45613879]
[1759934929536,0.002,4474.8,4474.7,3.56733879]
[1759934931060,0.002,4475.3,4475.2,2.234537]
[1759934931360,0.002,4475.3,4475.2,4.893737]
[1759934931586,0.002,4475.3,4475.2,5.354037]
[1759934931860,0.002,4475.3,4475.2,6.1129014]
[1759934932066,0.002,4475.3,4475.2,5.354037]
[1759934932460,0.002,4475.3,4475.2,2.806037]
[1759934932759,0.002,4475.3,4475.2,5.353037]
[1759934933767,0.002,4475.3,4475.2,2.806037]
[1759934933950,0.002,4475.3,4475.2,5.353037]
[1759934936354,0.002,4475.3,4475.2,2.806037]
[1759934936557,0.002,4475.3,4475.2,5.352037]
[1759934937950,0.0012,4475.3,4475.2,6.1107014]
[1759934938563,0.0012,4475.3,4475.2,3.5647014]
[1759934938766,0.0012,4475.3,4475.2,5.353037]
[1759934939335,0.0012,4475.3,4475.2,2.345737]
[1759934939584,0.0012,4475.3,4475.2,0.1112]
[1759934939948,0.0012,4475.3,4475.2,2.345737]
[1759934940344,0.0012,4475.3,4475.2,2.673337]
[1759934940550,0.0012,4475.3,4475.2,3.55237943]
[1759934940984,0.0012,4475.3,4475.2,5.47237943]
[1759934941281,0.0012,4475.3,4475.2,5.45003406]
[1759934942077,0.0012,4475.3,4475.2,4.704537]
[1759934942259,0.0012,4475.3,4475.2,7.252537]
[1759934942455,0.0012,4475.3,4475.2,4.704537]
[1759934942662,0.0012,4475.3,4475.2,7.252537]
[1759934942861,0.0012,4475.3,4475.2,2.784537]
[1759934943087,0.0012,4475.3,4475.2,5.332537]
[1759934943271,0.0012,4475.3,4475.2,2.784537]
[1759934943475,0.0012,4475.3,4475.2,5.332537]
[1759934943679,0.0012,4475.3,4475.2,2.784537]
[1759934943876,0.0012,4475.3,4475.2,5.332537]
[1759934945088,0.0012,4475.3,4475.2,8.00925406]
[1759934945454,1e-08,4475.4,4475.3,4.15448707]
[1759934945656,1e-08,4475.4,4475.3,4.61563194]
[1759934945878,1e-08,4475.4,4475.3,4.59328707]
[1759934947196,1e-08,4475.4,4475.3,5.22688707]
[1759934947352,1e-08,4475.4,4475.3,6.53808454]
[1759934951503,1e-08,4475.4,4475.3,5.90448454]
[1759934951657,1e-08,4475.4,4475.3,4.59328707]
[1759934951858,1e-08,4475.4,4475.3,2.67328707]
[1759934952163,1e-08,4475.4,4475.3,5.21928707]
[1759934953185,1e-08,4475.4,4475.3,2.67328707]
[1759934953504,1e-08,4475.4,4475.3,5.21928707]
[1759934954477,1e-08,4475.4,4475.2,0.1112]
[1759934954678,1e-08,4475.4,4474.8,0.1122]
[1759934954897,0.23455785,4475.3,4474.9,2.23468535]
[1759934955082,1e-08,4475.4,4475.0,0.46114636]
[1759934955279,1e-08,4475.4,4474.8,0.1122]
[1759934955482,1e-08,4475.4,4475.0,2.23462884]
[1759934955699,0.02078756,4475.4,4474.8,0.1122]
[1759934956266,0.41072521,4475.4,4474.8,0.1122]
[1759934956473,0.02078756,4475.4,4474.8,2.34691806]
[1759934956673,0.02078756,4475.4,4474.8,0.1122]
[1759934957401,0.02078756,4475.4,4474.9,2.2346868]
[1759934957768,0.02078756,4475.4,4474.8,0.1122]
[1759934957972,1e-08,4475.4,4474.9,0.02234686]
[1759934958170,1e-08,4475.4,4475.0,0.4388]
[1759934958477,1e-08,4475.4,4475.3,2.23448707]
[1759934958887,1e-08,4475.4,4475.3,2.69563194]
[1759934959094,1e-08,4475.4,4475.3,2.67328707]
[1759934959403,1e-08,4475.4,4475.3,2.78448707]
[1759934960005,1e-08,4475.4,4475.3,0.1112]
[1759934960208,1e-08,4475.4,4475.3,2.34568707]
[1759934960572,1e-08,4475.4,4474.8,0.1122]
[1759934960791,0.11040001,4475.5,4474.8,0.1122]
[1759934960993,2.2346868,4474.9,4474.8,0.001]
[1759934961195,2.36692838,4474.9,4474.8,0.001]
[1759934961395,4.60161518,4474.9,4474.8,0.001]
[1759934961901,2.36692838,4474.9,4474.8,0.001]
[1759934962102,4.62240273,4474.9,4474.8,0.001]
[1759934962303,5.04831518,4474.9,4474.8,0.001]
[1759934962479,2.81362838,4474.9,4474.8,0.001]
[1759934962681,2.38771593,4474.9,4474.8,0.001]
[1759934962988,4.62240273,4474.9,4474.8,0.001]
[1759934963172,2.36692838,4474.9,4474.8,0.001]
[1759934963377,2.38771593,4474.9,4474.8,0.001]
[1759934963578,1.92,4474.9,4474.8,0.001]
[1759934963808,1.94078755,4474.9,4474.8,0.001]
[1759934964174,2.40118755,4474.9,4474.8,0.001]
[1759934964582,1.94078755,4474.9,4474.8,0.001]
[1759934964825,4.17547435,4474.9,4474.8,0.001]
[1759934965116,5.53137589,4474.9,4474.8,0.001]
[1759934965293,5.51058834,4474.9,4474.8,0.001]
[1759934966992,6.14418834,4474.9,4474.8,0.001]
[1759934967194,6.14418834,4474.9,4474.3,0.001]
[1759934967195,2.23488657,4474.5,4474.3,0.001]
[1759934967486,2.23488657,4474.5,4474.0,0.001]
[1759934967487,2.86868638,4474.1,4474.0,0.001]
[1759934967778,22.11428454,4474.1,4474.0,0.001]
[1759934968018,22.55389699,4474.1,4474.0,0.001]
[1759934968196,19.68521061,4474.1,4474.0,0.001]
[1759934968379,5.23072729,4474.1,4474.0,0.001]
[1759934968781,7.16581367,4474.1,4474.0,0.001]
[1759934969178,4.93072729,4474.1,4474.0,0.001]
[1759934969992,7.16581367,4474.1,4474.0,0.001]
[1759934970191,4.93072729,4474.1,4474.0,0.001]
[1759934970726,4.465,4474.1,4474.0,0.001]
[1759934970892,4.464,4474.1,4474.0,0.001]
[1759934971091,2.6552,4474.1,4474.0,0.001]
[1759934972503,3.13638755,4474.1,4474.0,0.001]
[1759934973310,17.13047087,4474.1,4474.0,0.001]
[1759934973528,2.8687863,4473.9,4473.8,0.001]
[1759934973832,5.03657385,4473.9,4473.8,0.001]
[1759934974035,2.86893619,4473.6,4473.5,0.001]
[1759934974208,5.43372374,4473.6,4473.5,0.001]
[1759934974519,5.87333619,4473.6,4473.5,0.001]
[1759934974826,6.89889639,4473.6,4473.5,0.001]
[1759934975423,4.78898616,4473.5,4473.4,0.001]
[1759934975720,2.23602072,4472.3,4472.1,0.01]
[1759934975920,2.56578755,4472.2,4472.1,0.01]
[1759934976122,5.2622235,4472.2,4472.1,0.01]
[1759934976423,2.545,4472.2,4472.1,0.01]
[1759934977043,3.0054,4472.2,4472.1,0.01]
[1759934977633,0.02078755,4472.4,4472.1,0.01]
[1759934977843,2.545,4472.2,4472.1,0.01]
[1759934978025,2.56578755,4472.2,4472.1,0.01]
[1759934978937,3.02618755,4472.2,4472.1,0.01]
[1759934979238,0.48118755,4472.2,4472.1,0.01]
[1759934979406,2.545,4472.2,4472.1,0.01]
[1759934980039,6.13161471,4472.2,4472.1,0.01]
[1759934980347,8.05161471,4472.2,4472.1,0.01]
[1759934983929,8.05081471,4472.2,4472.1,0.01]
[1759934986439,4.72157876,4472.2,4472.1,0.01]
[1759934986645,4.465,4472.2,4472.1,0.01]
[1759934986829,2.545,4472.2,4472.1,0.01]
[1759934987030,2.545,4472.2,4472.1,2.24608595]
[1759934987236,0.48868755,4473.1,4472.5,2.23585185]
[1759934987434,1.0255602,4473.6,4472.5,2.68304063]
[1759934987435,0.1112,4472.6,4472.5,2.68304063]
[1759934987669,0.4686089,4473.6,4472.5,2.68304063]
[1759934987670,0.1112,4472.9,4472.5,0.44718878]
[1759934987826,2.23528592,4473.8,4473.0,2.23562575]
[1759934988028,0.1112,4473.2,4472.8,2.23569784]
[1759934988301,2.546,4473.1,4472.9,2.23568244]
[1759934988569,2.546,4473.1,4473.0,2.70383603]
[1759934988736,2.546,4473.1,4473.0,2.23563603]
[1759934988942,2.546,4473.1,4472.9,0.44715157]
[1759934989137,2.546,4473.1,4472.8,0.1112]
[1759934989445,2.548,4473.1,4473.0,2.23563603]
[1759934990255,2.548,4473.1,4472.8,0.1112]
[1759934990850,2.548,4473.1,4472.8,2.34691587]
[1759934991584,2.548,4473.1,4472.8,0.1112]
[1759934991788,0.1112,4472.9,4472.1,2.3582555]
[1759934991950,2.546,4472.8,4472.5,2.23588307]
[1759934992604,2.546,4472.8,4472.7,2.23578599]
[1759934992775,2.548,4473.1,4472.7,0.4682]
[1759934993114,2.548,4473.1,4473.0,2.23563603]
[1759934993276,2.548,4473.1,4473.0,2.67693603]
[1759934993768,2.548,4473.1,4473.0,3.17932323]
[1759934994404,2.548,4473.1,4472.7,0.1112]
[1759934994405,2.548,4473.1,4472.9,2.23567913]
[1759934995200,2.548,4473.1,4473.0,2.23563603]
[1759934997499,2.548,4473.1,4473.0,2.67693603]
[1759934997707,0.002,4473.1,4473.0,2.67693603]
[1759934997894,0.002,4473.1,4473.0,2.78813603]
[1759934998063,0.002,4473.1,4473.0,3.29052293]
[1759934998469,0.002,4473.1,4473.0,3.31287929]
[1759934998705,0.002,4473.1,4473.0,3.29052293]
[1759934998910,0.002,4473.1,4473.0,5.83552293]
[1759935000192,0.002,4473.1,4473.0,3.29052293]
[1759935000389,0.002,4473.1,4473.0,5.85787929]
[1759935000686,0.002,4473.1,4473.0,3.29052293]
[1759935000891,0.002,4473.1,4473.0,5.83552293]
[1759935001303,1e-08,4473.6,4473.5,2.23538616]
[1759935001509,1e-08,4473.6,4473.5,7.36182447]
[1759935001674,1e-08,4473.6,4473.5,7.89197061]
[1759935001879,1e-08,4473.6,4473.5,5.34697061]
[1759935002085,1e-08,4473.6,4473.5,7.89197061]
[1759935002876,1e-08,4473.6,4473.5,5.34697061]
[1759935003212,1e-08,4473.6,4473.5,5.97197061]
[1759935004997,1e-08,4473.6,4473.5,3.42697061]
[1759935005202,1e-08,4473.6,4473.5,5.97197061]
[1759935005509,1e-08,4473.6,4473.5,3.42697061]
[1759935005695,1e-08,4473.6,4473.5,5.97197061]
[1759935006913,0.00120001,4474.0,4473.9,2.2351863]
[1759935007222,0.00120001,4474.0,4473.8,2.23523101]
[1759935007426,0.00120001,4474.0,4473.8,0.1112]
[1759935007632,0.00120001,4474.0,4473.7,2.23525477]
[1759935007931,0.00120001,4474.0,4473.9,2.2351863]
[1759935008293,0.00120001,4474.0,4473.6,2.67663227]
[1759935008490,0.00120001,4474.0,4473.8,2.23522323]
[1759935009019,0.00120001,4474.0,4473.5,0.1112]
[1759935009219,0.60668755,4473.9,4472.8,2.23569221]
[1759935009526,0.1112,4473.0,4472.3,0.1112]
[1759935009688,0.1112,4473.0,4472.1,0.011]
[1759935009689,2.544,4473.0,4472.1,0.011]
[1759935009891,0.1112,4472.4,4472.1,0.011]
[1759935010091,0.02078755,4472.3,4472.1,0.011]
[1759935010398,2.34723595,4472.2,4472.1,0.011]
[1759935010597,3.12491709,4472.2,4472.1,0.011]
[1759935011025,5.65772954,4472.2,4472.1,0.011]
[1759935011188,8.20172954,4472.2,4472.1,0.011]
[1759935012824,5.65772954,4472.2,4472.1,0.011]
[1759935012989,8.20272954,4472.2,4472.1,0.011]
[1759935013637,2.86978596,4471.9,4471.8,0.001]
[1759935013792,5.97416965,4471.9,4471.8,0.001]
[1759935013992,6.4280821,4471.9,4471.8,0.001]
[1759935014817,4.78983596,4471.8,4471.2,0.001]
[1759935015027,18.60321096,4471.7,4471.2,0.001]
[1759935015248,2.87003601,4471.4,4471.2,0.001]
[1759935015436,2.87003601,4471.4,4470.9,1e-08]
[1759935015437,4.90128603,4471.3,4470.9,1e-08]
[1759935015749,2.87063637,4470.2,4469.1,0.01]
[1759935015946,7.35642392,4470.2,4469.1,0.01]
[1759935016247,21.62366136,4470.2,4469.1,0.01]